bitfinex/quotes_ETHUSD_20250422
["timestamp","ask_amount","ask_price","bid_price","bid_amount"]
[1745294465392,0.15375552,1578.6,1578.5,0.47017361]
[1745294465592,0.15375552,1578.6,1578.4,12.54508085]
[1745294466008,0.15375552,1578.6,1578.4,6.2096]
[1745294466628,0.15375552,1578.6,1578.5,3.0]
[1745294467128,0.48410555,1578.6,1578.5,3.0]
[1745294467329,6.81883252,1578.6,1578.5,3.46750423]
[1745294467529,7.87943851,1578.6,1578.2,3.7826]
[1745294467717,12.89883252,1578.6,1578.5,5.427]
[1745294468305,13.65803252,1578.6,1578.5,5.427]
[1745294468535,6.33633253,1578.2,1578.0,20.881]
[1745294468701,6.33633253,1578.2,1578.1,5.427]
[1745294468906,6.33633253,1578.2,1578.1,8.427]
[1745294469109,6.49008805,1578.2,1578.1,8.427]
[1745294469303,6.49008805,1578.2,1578.1,5.427]
[1745294469723,6.49008805,1578.2,1578.1,8.427]
[1745294470035,6.33673404,1578.1,1578.0,21.36231438]
[1745294470197,7.13803404,1578.1,1578.0,5.427]
[1745294470397,6.33797028,1577.8,1577.5,0.7982]
[1745294470732,6.33874239,1577.6,1577.5,5.90528048]
[1745294470906,6.33874239,1577.6,1577.5,8.90528048]
[1745294471329,0.15375552,1577.6,1577.5,8.90528048]
[1745294471515,0.15375552,1577.6,1577.5,5.90528048]
[1745294471722,6.33852126,1577.7,1577.6,3.0]
[1745294472036,6.33874239,1577.6,1577.5,5.90528048]
[1745294472535,6.33874239,1577.6,1577.5,8.90528048]
[1745294472701,6.33874239,1577.6,1577.5,8.428]
[1745294473233,6.33852126,1577.7,1577.6,3.0]
[1745294473401,6.33852126,1577.7,1577.5,5.428]
[1745294473602,0.1410351,1577.6,1577.5,5.428]
[1745294473830,6.33852126,1577.7,1577.5,5.428]
[1745294474016,0.1410351,1577.6,1577.5,5.428]
[1745294474224,6.33852126,1577.7,1577.5,5.428]
[1745294474422,0.1410351,1577.6,1577.5,5.428]
[1745294474621,6.33852126,1577.7,1577.5,5.428]
[1745294474825,0.1410351,1577.6,1577.5,5.428]
[1745294475130,6.33852126,1577.7,1577.5,5.428]
[1745294475445,0.1410351,1577.6,1577.5,5.89767893]
[1745294475630,6.33852126,1577.7,1577.6,3.0]
[1745294476030,6.08,1577.8,1577.6,10.13677842]
[1745294476340,6.08,1577.8,1577.7,6.33834062]
[1745294478134,6.08,1577.8,1577.7,9.33834062]
[1745294478315,12.67315748,1578.2,1577.8,7.13605986]
[1745294478637,12.67315748,1578.2,1578.0,3.0]
[1745294478638,6.33673946,1578.1,1578.0,3.0]
[1745294480204,6.33651626,1578.2,1578.0,3.0]
[1745294480853,6.33673404,1578.1,1578.0,3.0]
[1745294482554,6.33673404,1578.1,1578.0,3.46471061]
[1745294482862,6.33673404,1578.1,1578.0,3.0]
[1745294483068,7.60405907,1578.1,1578.0,3.0]
[1745294484965,8.37585907,1578.1,1578.0,3.0]
[1745294485122,6.3377829,1577.9,1577.8,8.427]
[1745294485622,6.3377829,1577.9,1577.8,8.90946196]
[1745294486662,6.33741979,1578.0,1577.9,3.0]
[1745294488263,12.41692765,1578.1,1577.9,3.0]
[1745294488625,0.14398227,1578.0,1577.9,3.0]
[1745294490576,0.33047752,1578.5,1578.2,0.7513]
[1745294490872,0.33047752,1578.5,1578.4,10.08682965]
[1745294491073,6.33411498,1578.8,1578.4,10.08682965]
[1745294491378,6.33488888,1578.6,1578.4,3.0]
[1745294491581,6.33432571,1578.7,1578.4,3.0]
[1745294492175,14.95070632,1578.8,1578.4,3.0]
[1745294492353,6.66451294,1578.8,1578.4,9.33537278]
[1745294492558,6.33437473,1578.7,1578.4,9.33537278]
[1745294492903,6.33437473,1578.7,1578.4,3.48497496]
[1745294493263,6.66451294,1578.8,1578.4,9.82031625]
[1745294493466,6.66451294,1578.8,1578.4,9.82025299]
[1745294493667,6.66451294,1578.8,1578.6,3.0]
[1745294493975,6.66451294,1578.8,1578.7,5.426]
[1745294494274,6.3341519,1578.8,1578.7,5.426]
[1745294498089,6.47055481,1578.8,1578.7,5.426]
[1745294498588,0.13640291,1578.8,1578.7,5.426]
[1745294499254,12.41374045,1578.9,1578.7,5.426]
[1745294499462,0.13640291,1578.8,1578.7,8.426]
[1745294499855,12.41374045,1578.9,1578.7,8.426]
[1745294500088,0.13640291,1578.8,1578.7,8.426]
[1745294500587,12.41374045,1578.9,1578.7,8.426]
[1745294500759,0.13640291,1578.8,1578.7,8.426]
[1745294501094,6.33392449,1578.8,1578.7,8.426]
[1745294501259,6.4703274,1578.8,1578.7,8.426]
[1745294502284,6.4703274,1578.8,1578.7,3.0]
[1745294502486,7.2908274,1578.8,1578.7,8.425]
[1745294506708,0.13640291,1578.8,1578.7,8.425]
[1745294507075,6.33392449,1578.8,1578.7,8.425]
[1745294507275,6.4742094,1578.8,1578.7,8.425]
[1745294508824,0.14028491,1578.8,1578.7,9.2469]
[1745294509106,1.15084822,1579.2,1578.8,9.33360594]
[1745294509107,13.81595019,1579.2,1578.8,9.33360594]
[1745294509276,7.48333383,1579.2,1578.8,9.33360594]
[1745294509475,6.66283383,1579.2,1578.8,9.33360594]
[1745294510006,6.33272649,1579.1,1578.8,9.64099972]
[1745294510397,6.33272649,1579.1,1578.8,3.0]
[1745294511510,12.66580372,1579.1,1578.8,3.0]
[1745294511707,6.33272649,1579.1,1578.8,3.0]
[1745294511921,6.33272649,1579.1,1578.8,3.30947353]
[1745294512215,12.66576291,1579.1,1578.8,3.0]
[1745294512409,6.33272649,1579.1,1578.8,3.0]
[1745294512716,6.33272649,1579.1,1578.8,9.8137956]
[1745294514374,6.3333465,1579.0,1578.8,3.48002694]
[1745294515015,7.15110941,1579.1,1578.9,8.422]
[1745294515513,13.48413621,1579.1,1578.9,3.0]
[1745294515714,7.15110941,1579.1,1579.0,5.422]
[1745294516390,6.33251404,1579.2,1579.1,3.0]
[1745294518623,6.47601062,1579.2,1579.1,3.0]
[1745294518791,7.64044092,1579.2,1579.1,3.0]
[1745294518992,7.15092117,1579.1,1579.0,8.42199974]
[1745294519396,13.37441775,1579.1,1579.0,8.42199974]
[1745294519692,13.37441775,1579.1,1579.0,3.0]
[1745294520823,12.55621775,1579.1,1579.0,3.0]
[1745294520987,6.22349658,1579.1,1579.0,3.7594]
[1745294521728,0.14349658,1579.1,1579.0,10.15585388]
[1745294521898,0.14349658,1579.1,1579.0,10.09252222]
[1745294522099,6.43157399,1579.4,1579.2,3.0]
[1745294522415,0.1,1579.4,1579.3,8.421]
[1745294523707,6.43151829,1579.4,1579.3,8.421]
[1745294524927,6.43151829,1579.4,1579.3,5.421]
[1745294524928,9.16704171,1579.4,1579.3,5.421]
[1745294526127,6.33272117,1579.1,1578.9,3.7594]
[1745294526426,6.33272117,1579.1,1579.0,8.421]
[1745294527343,6.33247907,1579.2,1579.0,8.421]
[1745294527542,6.33272117,1579.1,1579.0,8.421]
[1745294528040,6.33272117,1579.1,1579.0,3.0]
[1745294528234,6.33272117,1579.1,1579.0,8.421]
[1745294529848,12.66514527,1579.2,1579.0,8.421]
[1745294530143,6.33247907,1579.2,1579.0,8.421]
[1745294530944,6.33247907,1579.2,1579.0,5.421]
[1745294531147,12.41214417,1579.3,1579.0,5.421]
[1745294531534,13.34493978,1579.3,1579.0,11.75409788]
[1745294531710,13.34493978,1579.3,1579.0,5.421]
[1745294532111,6.33254457,1579.2,1579.0,5.421]
[1745294533640,0.14550333,1579.1,1579.0,5.421]
[1745294533946,6.33312222,1579.0,1578.8,0.48120171]
[1745294534151,6.33392449,1578.8,1578.7,5.421]
[1745294534531,6.47942782,1578.8,1578.7,5.421]
[1745294539826,12.55942782,1578.8,1578.7,5.421]
[1745294540327,6.33472697,1578.6,1578.5,23.882]
[1745294540668,6.33472697,1578.6,1578.5,29.301]
[1745294540845,12.5602303,1578.6,1578.5,20.882]
[1745294541889,6.33593106,1578.3,1578.1,3.0]
[1745294542093,6.33593106,1578.3,1578.0,10.78036511]
[1745294542094,6.33593106,1578.3,1578.0,4.44328534]
[1745294542269,6.33614348,1578.3,1578.2,5.419]
[1745294542599,6.33633253,1578.2,1578.0,0.7938]
[1745294542898,6.33704481,1578.1,1578.0,5.42]
[1745294543090,6.33704481,1578.1,1578.0,8.42]
[1745294543389,6.33704481,1578.1,1578.0,5.42]
[1745294543776,7.10504481,1578.1,1578.0,5.42]
[1745294546491,12.41651913,1578.2,1578.1,3.0]
[1745294546492,6.08,1578.2,1578.1,3.0]
[1745294546805,6.08,1578.2,1578.1,9.33673404]
[1745294546961,12.41520389,1578.5,1578.1,15.67346808]
[1745294547300,12.41520389,1578.5,1578.3,3.0]
[1745294547599,6.08,1578.5,1578.4,5.421]
[1745294547804,6.08,1578.5,1578.4,8.421]
[1745294548175,6.08,1578.5,1578.4,8.89580012]
[1745294548689,6.21988341,1578.5,1578.4,8.89580012]
[1745294549075,6.21988341,1578.5,1578.4,14.75652965]
[1745294550268,0.13988341,1578.5,1578.4,18.40601499]
[1745294550473,12.41375469,1578.9,1578.6,3.0]
[1745294550675,0.13988341,1578.8,1578.6,3.47394557]
[1745294550997,12.41375469,1578.9,1578.6,3.47394557]
[1745294551172,0.13988341,1578.7,1578.6,3.47394557]
[1745294551704,12.41375469,1578.9,1578.6,3.47394557]
[1745294552003,0.13988341,1578.7,1578.6,3.47394557]
[1745294552162,12.41375469,1578.9,1578.6,3.47394557]
[1745294552362,0.13988341,1578.7,1578.6,3.47394557]
[1745294552563,6.3339777,1578.8,1578.6,3.47394557]
[1745294552892,0.13988341,1578.7,1578.6,3.47394557]
[1745294553097,0.13988341,1578.7,1578.6,9.80867254]
[1745294553399,6.08,1578.9,1578.6,10.63097254]
[1745294553694,6.08,1578.9,1578.6,16.96542549]
[1745294553897,0.13988341,1578.8,1578.6,10.63069852]
[1745294554076,6.08,1578.9,1578.6,10.63069852]
[1745294554390,0.13988341,1578.8,1578.6,10.63069852]
[1745294554773,7.10163856,1579.0,1578.6,10.63069852]
[1745294554971,0.13988341,1578.7,1578.6,10.63069852]
[1745294555171,7.10163856,1579.0,1578.6,16.96515697]
[1745294555373,0.13988341,1578.7,1578.6,10.63069852]
[1745294555898,7.10163856,1579.0,1578.6,4.29624557]
[1745294555899,6.33371304,1578.9,1578.6,4.29624557]
[1745294556197,0.13988341,1578.7,1578.6,4.29624557]
[1745294556398,6.33371304,1578.9,1578.6,4.29624557]
[1745294556904,0.14135558,1578.8,1578.6,4.29624557]
[1745294557274,6.33371304,1578.9,1578.6,4.29624557]
[1745294557482,0.14135558,1578.8,1578.6,4.29624557]
[1745294557687,6.33371304,1578.9,1578.6,4.29624557]
[1745294557892,0.14135558,1578.8,1578.6,4.29624557]
[1745294558062,6.33371304,1578.9,1578.6,4.29624557]
[1745294558402,0.14135558,1578.8,1578.6,4.29624557]
[1745294558599,0.14135558,1578.8,1578.6,10.63095587]
[1745294558798,6.33371304,1578.9,1578.6,10.63095587]
[1745294558986,0.14135558,1578.7,1578.6,10.63095587]
[1745294559187,6.33371304,1578.9,1578.6,10.63095587]
[1745294559699,0.14135558,1578.8,1578.6,10.63095587]
[1745294559992,6.33371304,1578.9,1578.6,10.63095587]
[1745294560534,0.14135558,1578.8,1578.6,10.63095587]
[1745294560801,6.33371304,1578.9,1578.6,10.63095587]
[1745294560998,0.14135558,1578.7,1578.6,10.63095587]
[1745294561200,12.41291469,1579.1,1578.8,3.0]
[1745294561370,14.28745507,1579.1,1578.9,5.42]
[1745294561570,6.33312222,1579.0,1578.9,5.42]
[1745294563896,6.4744778,1579.0,1578.9,5.42]
[1745294566208,0.14135558,1579.0,1578.9,6.1792]
[1745294566408,0.14135558,1579.0,1578.9,9.1792]
[1745294566593,6.4744778,1579.0,1578.9,9.1792]
[1745294566973,6.47226043,1579.0,1578.9,9.1792]
[1745294567168,0.13913821,1579.0,1578.9,8.42]
[1745294567393,12.66430362,1579.3,1579.0,3.0]
[1745294567606,14.62545398,1579.3,1579.0,3.0]
[1745294567793,8.29322927,1579.3,1579.0,3.0]
[1745294568711,8.29322927,1579.3,1578.9,5.42]
[1745294568910,12.66521532,1579.2,1578.9,8.42]
[1745294569111,12.99546151,1579.2,1578.9,8.42]
[1745294570275,6.33273009,1579.1,1578.9,8.42]
[1745294570473,6.33273009,1579.1,1579.0,3.0]
[1745294570714,6.33312222,1579.0,1578.9,5.42]
[1745294571715,6.33312222,1579.0,1578.8,3.7592]
[1745294572015,6.33312222,1579.0,1578.9,5.418]
[1745294572512,6.33352333,1578.9,1578.6,4.88263091]
[1745294572725,6.33393449,1578.8,1578.7,5.418]
[1745294573428,6.33393449,1578.8,1578.7,8.418]
[1745294574718,6.47577437,1578.8,1578.7,8.418]
[1745294575228,0.14183988,1578.8,1578.7,8.418]
[1745294575724,6.33352333,1578.9,1578.8,3.0]
[1745294576318,6.33330449,1579.0,1578.8,3.0]
[1745294576694,7.57463494,1579.0,1578.8,3.0]
[1745294576893,13.90808067,1579.0,1578.8,3.0]
[1745294577102,7.57463494,1579.0,1578.8,3.0]
[1745294577418,12.4129404,1579.1,1578.8,3.0]
[1745294577419,6.08,1579.1,1578.9,0.7746]
[1745294577984,6.33255605,1579.2,1578.9,0.7746]
[1745294578394,6.18,1579.4,1579.1,3.64948534]
[1745294578616,6.18,1579.4,1579.3,3.0]
[1745294578617,0.1,1579.4,1579.3,3.0]
[1745294579186,6.43151829,1579.4,1579.3,3.0]
[1745294579401,8.34883046,1579.4,1579.3,3.0]
[1745294579603,6.3319192,1579.3,1579.2,8.418]
[1745294579803,7.1166192,1579.3,1579.2,8.418]
[1745294580225,8.34883046,1579.4,1579.2,8.418]
[1745294580417,14.6807226,1579.4,1579.2,8.418]
[1745294580640,6.3319192,1579.3,1579.2,8.418]
[1745294581006,7.79999417,1579.3,1579.2,8.418]
[1745294581645,0.7847,1579.2,1578.9,3.7746]
[1745294581844,6.3336562,1578.9,1578.7,4.42408534]
[1745294582023,6.3336562,1578.9,1578.8,5.417]
[1745294582205,6.33270959,1579.2,1578.8,6.1916]
[1745294582402,6.33298295,1579.1,1578.8,6.1916]
[1745294582602,6.33341577,1579.0,1578.8,5.417]
[1745294582843,12.66595295,1579.1,1578.9,3.0]
[1745294583077,6.33294898,1579.1,1578.9,3.0]
[1745294583217,7.11725736,1579.2,1578.9,3.0]
[1745294583417,0.7847,1579.2,1578.9,9.33344608]
[1745294583619,7.1170507,1579.2,1578.9,9.33344608]
[1745294584148,7.1170507,1579.2,1579.0,5.417]
[1745294584950,0.7847,1579.2,1579.0,5.417]
[1745294585346,0.7847,1579.2,1579.1,3.0]
[1745294585513,6.18,1579.4,1579.1,3.48583168]
[1745294585854,6.18,1579.4,1579.3,3.0]
[1745294586226,0.1,1579.4,1579.3,10.16983696]
[1745294586426,0.3988417,1579.8,1579.7,9.33031588]
[1745294586764,6.32850771,1580.2,1579.9,3.0]
[1745294587455,6.3280735,1580.3,1579.9,9.97887102]
[1745294587630,6.3280735,1580.3,1580.0,9.32910845]
[1745294587631,1.27558207,1580.3,1580.0,9.32910845]
[1745294587828,1.27558207,1580.3,1580.1,5.416]
[1745294588062,7.60355711,1580.3,1580.1,5.416]
[1745294588456,6.32831287,1580.2,1580.1,5.416]
[1745294589046,14.71647073,1580.3,1580.1,5.416]
[1745294589552,6.32831287,1580.2,1580.1,5.416]
[1745294589758,7.11267504,1580.3,1580.1,5.416]
[1745294589963,6.32831287,1580.2,1580.1,5.416]
[1745294590421,6.32871337,1580.1,1580.0,5.416]
[1745294593629,6.47443317,1580.1,1580.0,5.416]
[1745294594160,7.75472526,1580.1,1580.0,5.416]
[1745294594380,0.8219,1580.0,1579.4,0.8208]
[1745294594540,6.33031588,1579.7,1579.6,5.415]
[1745294595233,6.47603568,1579.7,1579.6,5.415]
[1745294597274,7.75664887,1579.7,1579.6,5.415]
[1745294598664,12.55603568,1579.7,1579.6,8.415]
[1745294599097,6.2257198,1579.7,1579.6,8.415]
[1745294599303,6.2257198,1579.7,1579.6,9.2358]
[1745294600103,6.2257198,1579.7,1579.6,19.21600197]
[1745294600571,0.8219,1580.2,1579.8,6.32987205]
[1745294600572,13.23043056,1580.2,1579.8,6.32987205]
[1745294600779,6.32898315,1580.1,1579.7,9.33030066]
[1745294601270,12.65800657,1580.1,1579.7,9.33030066]
[1745294601693,6.32913881,1580.0,1579.7,9.33030066]
[1745294602756,6.32898315,1580.1,1579.7,9.39359621]
[1745294602951,13.94541061,1580.2,1579.9,3.0]
[1745294602952,0.33007775,1580.0,1579.9,3.0]
[1745294603257,0.33007775,1580.0,1579.9,8.425]
[1745294608192,0.47435023,1580.0,1579.9,8.375]
[1745294608371,0.47435023,1580.0,1579.9,8.85630852]
[1745294609779,7.11792475,1579.9,1579.7,5.425]
[1745294609981,6.32991517,1579.8,1579.7,5.425]
[1745294610183,6.32991517,1579.8,1579.7,3.0]
[1745294610361,12.55418765,1579.8,1579.7,3.0]
[1745294610562,12.55418765,1579.8,1579.6,5.425]
[1745294610954,6.22427248,1579.8,1579.7,3.0]
[1745294611794,12.55418765,1579.8,1579.7,3.0]
[1745294612497,6.22427248,1579.8,1579.7,3.0]
[1745294614560,6.22427248,1579.8,1579.7,3.7921]
[1745294615305,0.14427248,1579.8,1579.7,10.67241588]
[1745294615599,19.52475216,1580.3,1579.8,6.32957725]
[1745294615769,15.15901718,1580.3,1579.8,6.32957725]
[1745294615965,15.48904733,1580.3,1579.8,10.04235281]
[1745294616375,6.32834508,1580.2,1579.8,10.04235281]
[1745294616884,6.32834508,1580.2,1579.8,9.97906259]
[1745294617227,6.32834508,1580.2,1579.8,10.04235282]
[1745294617427,21.81724181,1580.3,1579.8,10.04235282]
[1745294617720,15.48904733,1580.3,1579.8,10.04235282]
[1745294617928,15.48904733,1580.3,1580.0,3.0]
[1745294618118,9.16090537,1580.3,1580.1,5.425]
[1745294618283,7.19843015,1580.3,1580.1,5.425]
[1745294618488,7.19843015,1580.3,1580.2,3.0]
[1745294618724,1.11843015,1580.3,1580.2,3.0]
[1745294619723,0.33003015,1580.3,1580.2,10.13171287]
[1745294620086,0.1,1580.4,1580.2,10.13171287]
[1745294620283,0.1,1580.4,1580.3,9.32791242]
[1745294620526,0.1,1580.4,1580.3,10.19458906]
[1745294620748,0.1,1580.4,1580.3,3.86667664]
[1745294620890,0.1,1580.4,1580.3,3.0]
[1745294622520,0.1,1580.4,1580.3,8.424]
[1745294623629,0.2509519,1580.4,1580.3,8.424]
[1745294623815,0.1,1580.4,1580.3,8.424]
[1745294624015,0.2509519,1580.4,1580.3,8.424]
[1745294624219,0.1,1580.4,1580.3,8.424]
[1745294624392,0.2509519,1580.4,1580.3,8.424]
[1745294624593,0.1,1580.4,1580.3,8.424]
[1745294624831,0.2509519,1580.4,1580.3,8.424]
[1745294624997,0.1,1580.4,1580.3,8.424]
[1745294625199,0.2509519,1580.4,1580.3,8.424]
[1745294627639,6.32831287,1580.2,1580.1,20.867]
[1745294627816,0.7904,1580.3,1580.1,26.291]
[1745294627817,7.11856551,1580.3,1580.1,26.291]
[1745294628021,0.7904,1580.3,1580.1,26.291]
[1745294628224,0.1509519,1580.2,1580.1,29.291]
[1745294629538,0.1509519,1580.2,1580.1,29.28]
[1745294630911,0.1,1580.4,1580.3,9.32791242]
[1745294631113,0.2509519,1580.4,1580.3,9.32791242]
[1745294631308,0.2509519,1580.4,1580.3,3.0]
[1745294631511,0.2509519,1580.4,1580.3,5.413]
[1745294632424,0.2509519,1580.4,1580.1,21.6704]
[1745294632601,0.2509519,1580.4,1580.3,5.413]
[1745294633033,6.57846392,1580.4,1580.3,5.413]
[1745294636410,6.32812838,1580.3,1580.1,20.867]
[1745294636614,7.12311287,1580.2,1580.1,20.867]
[1745294636814,7.27192785,1580.2,1580.1,20.867]
[1745294640045,6.33030595,1579.8,1579.5,0.8118]
[1745294640215,0.7948,1580.0,1579.5,0.8118]
[1745294640216,6.32966122,1579.9,1579.6,5.413]
[1745294640545,0.14881498,1579.8,1579.6,5.413]
[1745294640731,0.14881498,1579.8,1579.7,3.0]
[1745294640939,0.14881498,1579.8,1579.5,10.79220428]
[1745294640940,0.14881498,1579.8,1579.5,0.8118]
[1745294641103,6.32996144,1579.8,1579.7,5.413]
[1745294641444,6.33099946,1579.6,1579.5,5.413]
[1745294642042,6.47981444,1579.6,1579.5,5.413]
[1745294643542,6.47981444,1579.6,1579.3,3.762]
[1745294643840,6.47981444,1579.6,1579.5,5.413]
[1745294644442,6.33130605,1579.5,1579.4,5.413]
[1745294644603,6.33216997,1579.3,1579.1,0.762]
[1745294644806,6.33216997,1579.3,1579.2,5.413]
[1745294645020,6.33216997,1579.3,1579.2,8.413]
[1745294645431,6.33272117,1579.1,1579.0,20.862]
[1745294645633,6.33272117,1579.1,1579.0,26.276]
[1745294646531,6.33272117,1579.1,1579.0,29.276]
[1745294647307,6.08,1579.3,1579.1,3.0]
[1745294647503,12.41217458,1579.3,1579.1,3.762]
[1745294647708,6.33232016,1579.2,1579.1,3.0]
[1745294648317,8.20676963,1579.2,1579.1,3.0]
[1745294648521,6.33232016,1579.2,1579.1,3.0]
[1745294650675,6.33232016,1579.2,1579.0,26.276]
[1745294651145,6.66241319,1579.2,1579.0,26.276]
[1745294651445,12.99510019,1579.2,1579.0,26.276]
[1745294651640,12.66500716,1579.2,1579.0,26.276]
[1745294652044,6.33232016,1579.2,1579.0,26.276]
[1745294652427,6.33272117,1579.1,1579.0,29.276]
[1745294653154,6.33232016,1579.2,1579.1,3.0]
[1745294653535,6.46870539,1579.2,1579.1,3.0]
[1745294653747,7.67232672,1579.2,1579.1,3.0]
[1745294653948,6.33272117,1579.1,1579.0,26.276]
[1745294654120,6.33272117,1579.1,1579.0,29.276]
[1745294654464,6.4691064,1579.1,1579.0,29.276]
[1745294656068,6.4691064,1579.1,1579.0,23.862]
[1745294656273,6.4691064,1579.1,1579.0,29.278]
[1745294657275,12.5491064,1579.1,1579.0,29.278]
[1745294660264,6.21638523,1579.1,1579.0,29.278]
[1745294660463,6.21638523,1579.1,1579.0,30.1017]
[1745294661675,6.21638523,1579.1,1579.0,40.08430756]
[1745294661851,5.9904363,1579.1,1579.0,40.63430756]
[1745294662062,7.10432317,1579.6,1579.2,6.33213103]
[1745294662261,13.43534291,1579.6,1579.3,3.7863]
[1745294662586,0.12047196,1579.5,1579.4,5.416]
[1745294662752,6.4515894,1579.5,1579.4,5.416]
[1745294666387,0.12047196,1579.5,1579.4,5.416]
[1745294667196,0.45055872,1579.5,1579.4,5.416]
[1745294668894,0.45055872,1579.5,1579.4,8.416]
[1745294669096,0.12047196,1579.5,1579.4,13.80030363]
[1745294669264,0.12047196,1579.5,1579.4,19.21630363]
[1745294669478,0.33007009,1579.9,1579.7,0.8193]
[1745294669669,0.33007009,1579.9,1579.8,8.416]
[1745294670589,0.33007009,1579.9,1579.8,18.4586936]
[1745294670771,0.33007009,1579.9,1579.8,18.39540051]
[1745294670970,2.82754086,1580.1,1579.8,18.39540051]
[1745294672002,2.82754086,1580.1,1579.8,12.06548534]
[1745294672214,2.82754086,1580.1,1580.0,3.0]
[1745294672365,0.9218,1580.4,1580.0,13.79750956]
[1745294672797,0.1,1580.4,1580.1,6.32844669]
[1745294673002,0.1,1580.4,1580.3,3.0]
[1745294674280,0.1,1580.4,1580.3,10.14721242]
[1745294675071,0.22903096,1580.4,1580.3,10.14721242]
[1745294675609,0.22903096,1580.4,1580.3,10.46995256]
[1745294675809,0.22903096,1580.4,1580.3,10.14721242]
[1745294676913,0.22903096,1580.4,1580.3,10.63307713]
[1745294677810,0.1,1580.4,1580.3,10.63307713]
[1745294678317,0.22903096,1580.4,1580.3,10.63307713]
[1745294678513,0.1,1580.4,1580.3,10.63307713]
[1745294679011,0.22903096,1580.4,1580.3,10.63307713]
[1745294679312,0.1,1580.4,1580.3,11.2463457]
[1745294679471,0.22903096,1580.4,1580.3,11.2463457]
[1745294679678,0.1,1580.4,1580.3,11.2463457]
[1745294679899,0.8163,1581.0,1580.8,3.0]
[1745294680208,2.82754086,1581.1,1580.9,5.413]
[1745294683711,0.14292463,1581.0,1580.9,5.413]
[1745294683916,0.14292463,1581.0,1580.9,19.18329612]
[1745294684076,0.33002321,1581.2,1581.0,3.0]
[1745294684277,0.33002321,1581.2,1581.1,5.412]
[1745294684602,0.33002321,1581.2,1581.1,14.73671064]
[1745294685723,0.33002321,1581.2,1581.1,9.2073]
[1745294686484,0.33002321,1581.2,1581.1,8.412]
[1745294687314,1.14632321,1581.2,1581.1,3.0]
[1745294687496,1.14632321,1581.2,1581.1,8.411]
[1745294688245,1.14632321,1581.2,1581.1,3.0]
[1745294690627,0.33002321,1581.2,1581.1,3.0]
[1745294691290,2.09447112,1581.2,1581.1,3.0]
[1745294691479,7.47063386,1581.2,1581.1,3.0]
[1745294691678,1.14632321,1581.2,1581.1,3.0]
[1745294692123,7.47063386,1581.2,1581.1,3.0]
[1745294693019,1.14632321,1581.2,1581.1,3.0]
[1745294696942,0.33002321,1581.2,1581.1,3.0]
[1745294697428,0.33002321,1581.2,1581.1,9.32471064]
[1745294698213,1.11632321,1581.2,1581.1,3.0]
[1745294698447,1.263786,1581.2,1581.1,3.0]
[1745294698840,0.93376279,1581.2,1581.1,3.0]
[1745294699051,0.14746279,1581.2,1581.1,3.0]
[1745294700843,7.25807344,1581.2,1581.1,3.0]
[1745294701049,0.93376279,1581.2,1581.1,3.0]
[1745294701341,0.14746279,1581.2,1581.1,3.0]
[1745294701907,0.14746279,1581.2,1581.1,10.15685629]
[1745294702246,2.82754086,1581.3,1581.2,6.32431065]
[1745294702442,0.4988417,1581.4,1581.3,3.0]
[1745294704567,0.4988417,1581.4,1581.3,9.3239107]
[1745294704753,0.4988417,1581.4,1581.3,11.44652602]
[1745294704954,0.32983049,1581.7,1581.6,9.32271117]
[1745294705151,0.32983049,1581.7,1581.6,15.98496968]
[1745294706381,0.32983049,1581.7,1581.6,9.66225851]
[1745294706583,0.32983049,1581.7,1581.6,3.0]
[1745294706877,0.32983049,1581.7,1581.5,5.409]
[1745294706878,6.32271117,1581.6,1581.5,5.409]
[1745294707098,10.93118303,1581.7,1581.5,8.409]
[1745294707957,17.25379538,1581.7,1581.5,8.409]
[1745294708383,6.32271117,1581.6,1581.5,8.409]
[1745294708786,10.26598278,1581.7,1581.5,8.409]
[1745294708950,16.58861057,1581.7,1581.5,8.409]
[1745294709584,16.58857729,1581.7,1581.5,8.409]
[1745294710764,6.32271117,1581.6,1581.5,8.409]
[1745294711219,10.26598278,1581.7,1581.5,8.409]
[1745294712424,6.32271117,1581.6,1581.5,8.409]
[1745294712929,6.32271117,1581.6,1580.9,0.824]
[1745294712930,7.14906458,1581.6,1580.9,0.824]
[1745294713088,6.3239107,1581.3,1581.0,5.409]
[1745294713292,7.15002388,1581.4,1581.0,5.409]
[1745294713293,7.14994061,1581.4,1581.1,3.0]
[1745294713592,0.15319954,1581.3,1581.0,5.409]
[1745294713898,7.14994061,1581.4,1581.1,3.0]
[1745294714096,0.15319954,1581.2,1581.1,10.61522256]
[1745294714297,9.15053543,1581.6,1581.1,11.32795497]
[1745294714638,0.48300905,1581.5,1581.2,9.32428734]
[1745294715185,0.48300905,1581.5,1581.1,7.61496111]
[1745294715186,6.32351915,1581.4,1581.1,4.29051192]
[1745294715587,0.15319954,1581.3,1581.1,4.29051192]
[1745294715783,6.65292418,1581.5,1581.1,10.61520782]
[1745294715983,0.15319954,1581.4,1581.1,10.61520782]
[1745294716425,0.15319954,1581.4,1581.1,4.29051192]
[1745294716721,0.15319954,1581.4,1581.1,10.67845325]
[1745294716924,0.15319954,1581.4,1581.1,10.61521528]
[1745294717330,0.15319954,1581.4,1581.3,3.0]
[1745294717485,6.32414136,1581.3,1581.0,3.824]
[1745294717809,6.32414136,1581.3,1580.8,6.32571806]
[1745294717810,6.47769885,1581.2,1581.1,5.409]
[1745294718013,6.47769885,1581.2,1581.1,8.409]
[1745294720561,0.15319954,1581.2,1581.1,8.409]
[1745294721125,6.47751019,1581.2,1581.1,8.409]
[1745294721629,0.15319954,1581.2,1581.1,15.55771064]
[1745294721829,0.15319954,1581.2,1581.1,9.233]
[1745294722031,6.32361851,1581.4,1581.1,9.233]
[1745294722246,0.14839688,1581.3,1581.1,9.233]
[1745294722558,6.32361851,1581.4,1581.1,9.233]
[1745294722758,0.14839688,1581.3,1581.1,9.233]
[1745294722935,6.32361851,1581.4,1581.1,9.233]